Cogmind - Beta 10.1 @@@ ROGUE MODE // 2020.10.01 @ 21:33:52 Player: Chiefwannatoke Result: Destroyed by P-80 Master with Gamma Rifle Performance ------------- Evolutions (7) 3500 Regions Visited (17) 3400 Robots Destroyed (82) 410 Value Destroyed (3379) 3379 Prototype IDs (25) 500 Alien Tech Used (0) 0 Bonus (581) 581 TOTAL SCORE: 11770 Bonus ------- High Alert Combat Kills 17 Follower Combat Kills 264 Met Data Miner 300 Cogmind --------- Core Integrity 0/1300 Matter 181/300 Energy 335/340 System Corruption 7% Temperature Cool (180) Movement Core (400) Ox7 Location -3/Research Parts ------- > --- POWER (1) -------- Particle Reactor > --- PROPULSION (4) --- (None) > --- UTILITY (12) ----- Experimental Optical Array Improved Signal Interpreter > --- WEAPON (4) ------- Quantum Rifle > --- INVENTORY (4) ---- Antigrav System Peak State ------------ > --- POWER ------------ (None) > --- PROPULSION ------- Combat Gravmag System Combat Gravmag System Combat Gravmag System Combat Gravmag System > --- UTILITY ---------- Advanced Heat Sink Improved Energy Well Experimental Optical Array Improved Signal Interpreter Advanced Melee Analysis Suite Recoil Nullifier Advanced Powered Armor Advanced Powered Armor Mini Drone Bay > --- WEAPON ----------- Phase Gun Quantum Rifle HERF Cannon Coil Gun > --- INVENTORY -------- Antigrav System [Rating: 105] Favorites ----------- Power Micro Nuclear Core Engine Ion Engine Power Core Micro Nuclear Core Reactor Light Antimatter Reactor Propulsion Combat Airjet Treads Biometal Medium Treads Leg Aluminum Leg Wheel Compact Wheel Hover Unit Combat Airjet Flight Unit Nuclear Pulse Array Utility Improved Signal Interpreter Device Experimental Thermal Shield Storage Improved Energy Well Processor Improved Signal Interpreter Protection Advanced Powered Armor Weapon Great Axe Energy Gun Tesla Rifle Energy Cannon Heavy Disruptor Cannon Ballistic Gun Coil Gun Ballistic Cannon Improved Light Cannon Launcher Advanced EMP Blaster Impact Weapon Great Maul Slashing Weapon Great Axe Piercing Weapon Enhanced Force Lance Build | -11 -10 -10 -10 -9 -8 -7 -7 -7 -6 -6 -6 -6 -5 -4 -4 -4 -3 ------- Run | Scr Mat Min Exi Min Mat Fac Low Dat Pro Fac Was Fac Fac Fac Upp Upp Res Slots Evolved 14 | . . . . . 4 2 . . . 2 . . 2 2 . . 2 Power . | . . . . . . . . . . . . . . . . . . Propulsion 2 | . . . . . . 1 . . . . . . 1 . . . . Utility 10 | . . . . . 2 1 . . . 2 . . 1 2 . . 2 Weapon 2 | . . . . . 2 . . . . . . . . . . . . Parts Attached 160 | 6 4 . . 4 21 20 . . 6 13 4 24 6 28 . 2 22 Power 12 | 1 . . . . 3 1 . . . 1 1 2 . 2 . . 1 Engine 2 | 1 . . . . 1 . . . . . . . . . . . . Core 8 | . . . . . 2 1 . . . 1 1 2 . 1 . . . Reactor 2 | . . . . . . . . . . . . . . 1 . . 1 Propulsion 51 | 2 . . . 1 6 7 . . 1 4 1 6 4 10 . 2 7 Treads 2 | . . . . . . . . . . . . . . . . . 2 Leg 19 | 2 . . . . 5 . . . . 1 . 5 2 4 . . . Wheel 2 | . . . . . . . . . . . . . . . . 2 . Hover 25 | . . . . 1 1 7 . . 1 2 1 1 . 6 . . 5 Flight 3 | . . . . . . . . . . 1 . . 2 . . . . Utility 44 | 1 2 . . . 5 7 . . 3 5 2 10 1 3 . . 5 Device 20 | . . . . . 2 3 . . 2 3 1 4 . 3 . . 2 Storage 6 | 1 . . . . 1 . . . . . 1 2 1 . . . . Processor 9 | . 1 . . . 1 2 . . . 1 . 3 . . . . 1 Hackware . | . . . . . . . . . . . . . . . . . . Protection 9 | . 1 . . . 1 2 . . 1 1 . 1 . . . . 2 Artifact . | . . . . . . . . . . . . . . . . . . Weapon 53 | 2 2 . . 3 7 5 . . 2 3 . 6 1 13 . . 9 Energy Gun 13 | . . . . . . . . . . 1 . 3 . 4 . . 5 Energy Cannon 7 | . . . . . . . . . . 2 . 1 1 2 . . 1 Ballistic Gun 12 | 2 . . . . . . . . . . . 1 . 7 . . 2 Ballistic Cannon 5 | . 2 . . 2 1 . . . . . . . . . . . . Launcher 3 | . . . . 1 1 . . . 1 . . . . . . . . Special Weapon . | . . . . . . . . . . . . . . . . . . Impact Weapon 3 | . . . . . 3 . . . . . . . . . . . . Slashing Weapon 9 | . . . . . 2 5 . . 1 . . 1 . . . . . Piercing Weapon 1 | . . . . . . . . . . . . . . . . . 1 Special Melee Weapon . | . . . . . . . . . . . . . . . . . . Unidentified Prototypes 9 | . . . . . 1 1 . . . 2 1 2 1 . . . 1 Parts Lost 76 | . . . . 1 10 2 . . 10 7 . 13 . 10 . 4 19 Power 6 | . . . . . 2 . . . . 1 . 1 . 2 . . . Propulsion 18 | . . . . 1 3 . . . 2 1 . 3 . 3 . 1 4 Utility 25 | . . . . . 1 2 . . 5 2 . 4 . 2 . 2 7 Weapon 27 | . . . . . 4 . . . 3 3 . 5 . 3 . 1 8 Highest Loss Streak 12 | . . . . 1 4 2 . . 4 4 . 8 . 6 . 3 12 Average Slot Usage (%) 78 | . 98 100 100 100 86 98 100 100 89 75 71 87 65 77 47 39 55 Engine 1 | . 14 14 14 14 1 . . . . . . . . . . . . Core 3 | . . . . . 6 7 7 7 7 6 5 5 5 1 . . . Leg 5 | . 28 28 28 26 14 2 . . . 1 . 1 9 5 . . . Hover 12 | . . . . 1 1 18 23 23 22 14 20 17 . 10 10 6 14 Device 10 | . . . . . 6 6 7 7 14 15 25 12 11 15 15 11 7 Storage 7 | . 14 14 14 14 9 7 7 7 7 6 5 13 5 5 5 5 3 Processor 10 | . 1 14 14 14 9 13 15 15 . 3 6 13 17 14 10 10 12 Protection 3 | . 10 . . . 4 7 7 7 6 2 . 2 . . . . 6 Energy Gun 1 | . . . . . . . . . . 3 . 5 2 3 . . 2 Ballistic Gun 4 | . 22 . . . . . . . . . . 3 . 10 5 1 3 Ballistic Cannon 1 | . 5 28 28 18 5 . . . . . . . . . . . . Impact Weapon 2 | . . . . . 12 11 . . . . . . . . . . . Slashing Weapon 7 | . . . . . 13 18 30 30 26 11 6 7 . . . . . Naked Turns . | . . . . . . . . . . . . . . . . . . Heaviest Build 65 | 13 18 17 17 17 27 36 35 35 39 55 24 44 28 49 18 18 65 Greatest Support 100 | 20 20 20 20 22 28 55 55 55 55 52 66 66 65 50 32 16 100 Greatest Overweight (x) 7 | 4 . . . . 2 2 . . . 2 . 7 . 2 1 1 7 Average Overweight (x) . | . . . . . . . . . . . . . . . . . . Largest Inventory Capacity 8 | 6 6 6 6 6 8 6 6 6 6 6 4 8 8 4 4 4 4 Average Capacity 5 | 5 6 6 6 6 6 6 6 6 6 5 4 7 4 4 4 4 4 Most Carried 8 | 2 6 6 6 6 6 6 6 6 6 5 4 8 4 4 1 1 1 Average Carried 3 | 1 4 5 6 5 5 5 6 6 3 3 2 6 3 3 1 1 . Final Capacity 8 | 6 6 6 6 6 6 6 6 6 6 4 4 8 4 4 4 4 4 Final Carried 6 | 2 6 6 6 5 6 6 6 6 2 4 2 5 4 1 1 1 1 Class Distribution -------------------- 53% | Mutant 28% | Scavenger-Mutant 10% | Scavenger-Gunner 3% | Gunner Dominant Class ---------------- Mutant | -10/Materials Mutant | -10/Mines Mutant | -10/Exiles Mutant | -9/Mines Scavenger-Mutant | -8/Materials Mutant | -7/Factory Mutant | -7/Lower Caves Mutant | -7/Data Miner Mutant | -6/Proximity Caves Mutant | -6/Factory Machinist-Mutant | -6/Waste Mutant | -6/Factory Scavenger-Mutant | -5/Factory Scavenger-Gunner | -4/Factory Scavenger-Mutant | -4/Upper Caves Scavenger-Mutant | -4/Upper Caves Mutant | -3/Research Resources | -11 -10 -10 -10 -9 -8 -7 -7 -7 -6 -6 -6 -6 -5 -4 -4 -4 -3 ----------- Run | Scr Mat Min Exi Min Mat Fac Low Dat Pro Fac Was Fac Fac Fac Upp Upp Res Matter Collected 2211 | 221 . 18 . 94 348 185 5 . 180 125 . 308 84 282 45 155 161 Remotely . | . . . . . . . . . . . . . . . . . . Salvage Created 3281 | . . . . 118 792 409 . . 415 129 . 458 . 735 11 . 214 Parts 162 | . . . . 8 46 21 . . 15 9 . 21 . 34 . . 8 Haulers Intercepted . | . . . . . . . . . . . . . . . . . . Recyclers Shooed 4 | . . . . . 1 . . . . . . . . 1 . . 2 Parts Field Recycled . | . . . . . . . . . . . . . . . . . . Retrieved Matter . | . . . . . . . . . . . . . . . . . . Parts Self-Destructed 18 | . . . . . . . 3 . 15 . . . . . . . . Prevented 3 | . . . . . . . 3 . . . . . . . . . . Kills | -11 -10 -10 -10 -9 -8 -7 -7 -7 -6 -6 -6 -6 -5 -4 -4 -4 -3 ------- Run | Scr Mat Min Exi Min Mat Fac Low Dat Pro Fac Was Fac Fac Fac Upp Upp Res Combat Hostiles Destroyed 74 | . . . . 9 17 8 . . 12 4 . 11 . 10 . . 3 Melee 37 | . . . . . 11 8 . . 6 4 . 8 . . . . . Guns 12 | . . . . . . . . . . . . 3 . 6 . . 3 Cannons 2 | . . . . 2 . . . . . . . . . . . . . AOE 18 | . . . . 7 4 . . . 6 . . . . 1 . . . Classes Destroyed 12 | . . . . 4 5 1 . . . . . . . 1 1 . . Builder 2 | . . . . . 1 . . . . . . . . 1 . . . Recycler 1 | . . . . . 1 . . . . . . . . . . . . Watcher 4 | . . . . . 2 2 . . . . . . . . . . . Swarmer 26 | . . . . 4 6 3 . . 4 3 . 6 . . . . . Grunt 29 | . . . . 2 8 2 . . 7 1 . 5 . 4 . . . Brawler 2 | . . . . . 1 . . . 1 . . . . . . . . Duelist 2 | . . . . 1 1 . . . . . . . . . . . . Sentry 3 | . . . . . 1 2 . . . . . . . . . . . Demolisher 2 | . . . . 2 . . . . . . . . . . . . . Hunter 4 | . . . . . . . . . . . . . . 2 . . 2 Programmer 6 | . . . . . . 1 . . . . . . . 4 . . 1 Decomposer 1 | . . . . . . . . . . . . . . . 1 . . Best Kill Streak 10 | . . . . 7 10 3 . . 3 4 . 3 . 2 . . 1 Combat Bots Only 7 | . . . . 7 7 3 . . 3 4 . 3 . 2 . . 1 Max Kills in Single Turn 3 | . . . . 3 3 1 . . 2 1 . 2 . 1 1 . 1 Gunslinging 1 | . . . . . . . . . . . . 1 . . . . . Exploded 3 | . . . . 3 2 . . . 2 . . . . 1 . . . Melee 2 | . . . . . 1 1 . . 2 1 . 1 . . . . . Uniques/NPCs Destroyed . | . . . . . . . . . . . . . . . . . . Combat | -11 -10 -10 -10 -9 -8 -7 -7 -7 -6 -6 -6 -6 -5 -4 -4 -4 -3 -------- Run | Scr Mat Min Exi Min Mat Fac Low Dat Pro Fac Was Fac Fac Fac Upp Upp Res Damage Taken 12479 | . . . . 750 1032 799 . . 949 1248 . 1996 21 1779 . 176 3729 Core 2945 | . . . . 111 153 175 . . 142 103 . 590 . 289 . 58 1324 Absorbed by Shields . | . . . . . . . . . . . . . . . . . . Core Remaining (%) 66 | 100 . . . 55 72 . . . 54 . . 18 100 . . 69 . Volleys Fired 98 | . . . . 11 6 . . . 9 4 . 8 . 34 1 . 25 Largest 4 | . . . . 2 4 . . . 1 2 . 3 . 4 1 . 4 Hottest 300 | . . . . 78 153 . . . 36 170 . 168 . 200 30 . 300 Shots Fired 176 | . . . . 17 17 . . . 9 8 . 18 . 68 1 . 38 Gun 111 | . . . . . . . . . . 4 . 18 . 53 1 . 35 Cannon 46 | . . . . 12 12 . . . . 4 . . . 15 . . 3 Launcher 19 | . . . . 5 5 . . . 9 . . . . . . . . Special . | . . . . . . . . . . . . . . . . . . Kinetic 94 | . . . . 12 12 . . . . . . 8 . 40 1 . 21 Thermal 44 | . . . . . . . . . . 8 . 10 . 12 . . 14 Explosive 14 | . . . . 5 . . . . 9 . . . . . . . . Electromagnetic 24 | . . . . . 5 . . . . . . . . 16 . . 3 Robot Hit Streak 17 | . . . . 6 4 . . . 8 4 . 4 . 17 2 . 4 Robot Miss Streak 5 | . . . . 2 2 . . . 1 2 . 2 . 2 . . 5 Penetration Max 1 | . . . . . . . . . . . . . . 1 . . . Secondary Targets 2 | . . . . . . . . . . . . 1 . 1 . . . Max Gunslinging Chain 1 | . . . . . . . . . . . . 1 . 1 . . . Shots Hit Robots 240 | . . . . 12 25 39 . . 26 20 . 44 . 50 1 . 23 Core Hits 131 | . . . . 14 21 12 . . 24 6 . 16 . 26 1 . 11 Critical Hits 3 | . . . . . . . . . . . . 1 . 2 . . . Critical Kills 1 | . . . . . . . . . . . . . . 1 . . . Critical Parts Destroyed 2 | . . . . . . . . . . . . 1 . 1 . . . Melee Attacks 182 | . . . . . 29 57 . . 28 20 . 45 . . . . 3 Impact 33 | . . . . . 5 28 . . . . . . . . . . . Slashing 146 | . . . . . 24 29 . . 28 20 . 45 . . . . . Piercing 3 | . . . . . . . . . . . . . . . . . 3 Sneak Attacks 1 | . . . . . 1 . . . . . . . . . . . . Combat Hostiles . | . . . . . . . . . . . . . . . . . . Follow-up Attacks 31 | . . . . . 3 13 . . 9 2 . 4 . . . . . Damage Inflicted 9655 | . . . . 788 1383 1316 . . 1696 725 . 1455 . 1711 24 . 557 Guns 1988 | . . . . . . . . . . 71 . 278 . 1096 24 . 519 Cannons 863 | . . . . 190 114 . . . . 123 . . . 398 . . 38 Explosions 2346 | . . . . 598 644 . . . 929 . . . . 175 . . . Melee 4416 | . . . . . 625 1316 . . 767 531 . 1177 . . . . . Ramming 42 | . . . . . . . . . . . . . . 42 . . . Kinetic 1581 | . . . . 190 114 . . . . . . 103 . 872 24 . 278 Thermal 823 | . . . . . . . . . . 194 . 175 . 213 . . 241 Explosive 1527 | . . . . 598 . . . . 929 . . . . . . . . Electromagnetic 1266 | . . . . . 644 . . . . . . . . 584 . . 38 Impact 530 | . . . . . 122 408 . . . . . . . . . . . Slashing 3886 | . . . . . 503 908 . . 767 531 . 1177 . . . . . Piercing . | . . . . . . . . . . . . . . . . . . Highest Corruption 12 | . . . . 2 2 1 1 1 8 3 8 7 . 12 12 12 7 Average Corruption 6 | . . . . 2 1 1 1 1 7 2 6 3 . 6 12 12 4 Corruption Purged 7 | . . . . . . . . . . . 1 6 . . . . . Effects 99 | . . . . . . . . . 18 . 4 11 . 21 36 6 3 Message Errors 19 | . . . . . . . . . 5 . 2 . . 5 6 1 . Matter Fused 29 | . . . . . . . . . 5 . 1 4 . 3 11 4 1 Heat Flow Errors 10 | . . . . . . . . . 2 . 1 2 . . 5 . . Energy Discharges 11 | . . . . . . . . . 2 . . 1 . 1 5 1 1 Parts Rejected 3 | . . . . . . . . . 1 . . . . 2 . . . Data Loss (minor) 12 | . . . . . . . . . 2 . . 1 . 6 3 . . Data Loss (major) 2 | . . . . . . . . . . . . . . 1 1 . . Alerts 1 | . . . . . . . . . . . . . . . 1 . . Misdirections 4 | . . . . . . . . . . . . . . . 4 . . Targeting Errors 8 | . . . . . . . . . 1 . . 3 . 3 . . 1 Overload Shots . | . . . . . . . . . . . . . . . . . . Overflow Damage 338 | . . . . 97 94 22 . . 25 38 . 31 . 31 . . . Projectiles 31 | . . . . . . . . . . . . . . 31 . . . Explosions 112 | . . . . 97 9 . . . 6 . . . . . . . . Melee 195 | . . . . . 85 22 . . 19 38 . 31 . . . . . Knockbacks 10 | . . . . 5 3 2 . . . . . . . . . . . Impact 3 | . . . . . 1 2 . . . . . . . . . . . Kinetic 5 | . . . . 3 2 . . . . . . . . . . . . Secondary 2 | . . . . 2 . . . . . . . . . . . . . Self-Inflicted Damage 234 | . . . . 49 36 . . . 20 . . . . 129 . . . Shots 10 | . . . . 3 2 . . . 1 . . . . 4 . . . Rammed 5 | . . . . . . . . . . . . . . 5 . . . Targets Rammed 5 | . . . . . . . . . . . . . . 5 . . . Kicked . | . . . . . . . . . . . . . . . . . . Crushed . | . . . . . . . . . . . . . . . . . . Highest Temperature 449 | . . . . 90 227 2 . . 210 216 95 168 . 220 248 . 449 Average Temperature 90 | . . . . 38 112 2 . . 77 112 46 57 . 69 114 . 177 Received Heat Transfer 1757 | . . . . 32 405 243 . . 150 246 . 417 . 231 . 33 . Siege Activations . | . . . . . . . . . . . . . . . . . . Robots Corrupted 5 | . . . . . 2 . . . . . . . . 3 . . . Combat Hostiles 5 | . . . . . 2 . . . . . . . . 3 . . . Parts Fried 13 | . . . . . 3 2 . . . . . . . 8 . . . Impact Corruptions 5 | . . . . . 3 2 . . . . . . . . . . . Robots Melted . | . . . . . . . . . . . . . . . . . . Combat Hostiles . | . . . . . . . . . . . . . . . . . . Parts Melted 1 | . . . . . . . . . . . . . . . . . 1 Heat Transferred 1185 | . . . . . . . . . . 259 . 272 . 358 . . 296 Parts Sabotaged . | . . . . . . . . . . . . . . . . . . Parts Stolen . | . . . . . . . . . . . . . . . . . . Parts Stripped . | . . . . . . . . . . . . . . . . . . Power Chain Reactions . | . . . . . . . . . . . . . . . . . . Missiles Intercepted . | . . . . . . . . . . . . . . . . . . Alert | -11 -10 -10 -10 -9 -8 -7 -7 -7 -6 -6 -6 -6 -5 -4 -4 -4 -3 ------- Run | Scr Mat Min Exi Min Mat Fac Low Dat Pro Fac Was Fac Fac Fac Upp Upp Res Peak Influence 503 | . . . . 210 503 251 . . . 241 100 151 26 279 . . 45 Initial 161 | . . . . . 78 161 . . . 100 70 70 11 12 . . . Average 119 | . . . . 157 339 188 . . . 140 83 106 17 96 . . 3 Maximum Alert Level 2 | . . . . 1 2 1 . . . 1 . . . 1 . . . Low Security (%) 77 | 100 100 100 . 87 13 45 . . . 87 100 100 100 89 . . 100 Level 1 18 | . . . . 12 54 54 . . . 12 . . . 10 . . . Level 2 3 | . . . . . 31 . . . . . . . . . . . . Level 3 . | . . . . . . . . . . . . . . . . . . Level 4 . | . . . . . . . . . . . . . . . . . . Level 5 . | . . . . . . . . . . . . . . . . . . High Security . | . . . . . . . . . . . . . . . . . . Max Security . | . . . . . . . . . . . . . . . . . . Squads Dispatched 22 | . . . . . 5 4 . . . 5 . 1 . 3 . . 4 Investigation 4 | . . . . . . 3 . . . 1 . . . . . . . Extermination 6 | . . . . . . 1 . . . 1 . . . 2 . . 2 Reinforcement 7 | . . . . . 2 . . . . 1 . 1 . 1 . . 2 Assault . | . . . . . . . . . . . . . . . . . . Garrison 5 | . . . . . 3 . . . . 2 . . . . . . . Intercept . | . . . . . . . . . . . . . . . . . . Construction Impeded 1 | . . . . . 1 . . . . . . . . . . . . Haulers Reinforced . | . . . . . . . . . . . . . . . . . . Stealth | -11 -10 -10 -10 -9 -8 -7 -7 -7 -6 -6 -6 -6 -5 -4 -4 -4 -3 --------- Run | Scr Mat Min Exi Min Mat Fac Low Dat Pro Fac Was Fac Fac Fac Upp Upp Res Distress Signals 4 | . 1 . . 1 1 1 . . . . . . . . . . . Communications Jammed . | . . . . . . . . . . . . . . . . . . Distress Signals . | . . . . . . . . . . . . . . . . . . Times Spotted 190 | . . . . 25 27 12 1 . 20 16 7 23 1 42 . 4 12 Peak Tracking Total 16 | . . . . 16 8 3 1 . 5 7 6 6 1 14 . 3 7 Tactical Retreats 22 | . . . . . 4 1 1 . . 1 1 4 . 8 . 1 1 Traps | -11 -10 -10 -10 -9 -8 -7 -7 -7 -6 -6 -6 -6 -5 -4 -4 -4 -3 ------- Run | Scr Mat Min Exi Min Mat Fac Low Dat Pro Fac Was Fac Fac Fac Upp Upp Res Traps Triggered 13 | . . . . . 2 5 . . . 2 . 3 . 1 . . . Indirectly . | . . . . . . . . . . . . . . . . . . Trap Hack Attempts . | . . . . . . . . . . . . . . . . . . Triggered . | . . . . . . . . . . . . . . . . . . Disarmed . | . . . . . . . . . . . . . . . . . . Reprogrammed . | . . . . . . . . . . . . . . . . . . Reused . | . . . . . . . . . . . . . . . . . . Traps Extracted . | . . . . . . . . . . . . . . . . . . Installed . | . . . . . . . . . . . . . . . . . . Triggered 5 | . . . . . . . 4 . 1 . . . . . . . . Machines | -11 -10 -10 -10 -9 -8 -7 -7 -7 -6 -6 -6 -6 -5 -4 -4 -4 -3 ---------- Run | Scr Mat Min Exi Min Mat Fac Low Dat Pro Fac Was Fac Fac Fac Upp Upp Res Machines Disabled 9 | . . . . . 2 . . . . . . . . 7 . . . Max in Single Turn 4 | . . . . . 2 . . . . . . . . 4 . . . Garrison Access 3 | . . . . . . . . . . . . 1 1 1 . . . Machines Sabotaged . | . . . . . . . . . . . . . . . . . . Garrisons Compromised . | . . . . . . . . . . . . . . . . . . Overloaded Fab Kills . | . . . . . . . . . . . . . . . . . . Fab Network Shutdowns . | . . . . . . . . . . . . . . . . . . Hacking | -11 -10 -10 -10 -9 -8 -7 -7 -7 -6 -6 -6 -6 -5 -4 -4 -4 -3 --------- Run | Scr Mat Min Exi Min Mat Fac Low Dat Pro Fac Was Fac Fac Fac Upp Upp Res Machines Accessed 32 | . 2 . . . 2 9 . 4 . 4 . 4 2 5 . . . Terminals 17 | . 2 . . . 1 4 . . . 2 . 3 1 4 . . . Fabricators 3 | . . . . . . 3 . . . . . . . . . . . Repair Stations . | . . . . . . . . . . . . . . . . . . Recycling Units 2 | . . . . . . 1 . . . 1 . . . . . . . Scanalyzers 2 | . . . . . 1 1 . . . . . . . . . . . Garrison Access 4 | . . . . . . . . . . 1 . 1 1 1 . . . Total Hacks 77 | . 5 . . . 3 18 . 25 . 8 . 8 2 8 . . . Successful 57 | . 3 . . . 3 14 . 25 . 2 . 6 1 3 . . . Failed 20 | . 2 . . . . 4 . . . 6 . 2 1 5 . . . Catastrophic 3 | . . . . . . . . . . 2 . . 1 . . . . Database Lockouts . | . . . . . . . . . . . . . . . . . . Manual 8 | . . . . . . 5 . . . . . . 1 2 . . . Terminals 34 | . 5 . . . 1 8 . . . 5 . 7 1 7 . . . Fabricators 8 | . . . . . . 8 . . . . . . . . . . . Repair Stations . | . . . . . . . . . . . . . . . . . . Recycling Units 2 | . . . . . . 1 . . . 1 . . . . . . . Scanalyzers 3 | . . . . . 2 1 . . . . . . . . . . . Garrison Access 5 | . . . . . . . . . . 2 . 1 1 1 . . . Terminal Hacks 41 | . 3 . . . 1 4 . 25 . 1 . 5 . 2 . . . Record 19 | . 1 . . . . 4 . 11 . 1 . 2 . . . . . Part Schematic 6 | . . . . . . . . 6 . . . . . . . . . Robot Schematic 5 | . . . . . . . . 5 . . . . . . . . . Prototype ID Bank 7 | . 2 . . . 1 . . 3 . . . . . 1 . . . Branch Access Points 2 | . . . . . . . . . . . . 1 . 1 . . . Unreport Threat 2 | . . . . . . . . . . . . 2 . . . . . Fabricator Hacks 5 | . . . . . . 5 . . . . . . . . . . . Load Schematic 2 | . . . . . . 2 . . . . . . . . . . . Build 3 | . . . . . . 3 . . . . . . . . . . . Repair Station Hacks . | . . . . . . . . . . . . . . . . . . Recycling Unit Hacks 2 | . . . . . . 1 . . . 1 . . . . . . . Report Inventory 2 | . . . . . . 1 . . . 1 . . . . . . . Scanalyzer 2 | . . . . . 2 . . . . . . . . . . . . Insert Component 1 | . . . . . 1 . . . . . . . . . . . . Analyze 1 | . . . . . 1 . . . . . . . . . . . . Garrison Access Hacks 3 | . . . . . . . . . . . . 1 1 1 . . . Seal Access 3 | . . . . . . . . . . . . 1 1 1 . . . Unauthorized Hacks 4 | . . . . . . 4 . . . . . . . . . . . Terminals 1 | . . . . . . 1 . . . . . . . . . . . Botnet 1 | . . . . . . 1 . . . . . . . . . . . Fabricators 2 | . . . . . . 2 . . . . . . . . . . . Report 1 | . . . . . . 1 . . . . . . . . . . . Siphon 1 | . . . . . . 1 . . . . . . . . . . . Repair Stations . | . . . . . . . . . . . . . . . . . . Recycling Units . | . . . . . . . . . . . . . . . . . . Scanalyzers 1 | . . . . . . 1 . . . . . . . . . . . Extract 1 | . . . . . . 1 . . . . . . . . . . . Garrison Access . | . . . . . . . . . . . . . . . . . . Data Cores Recovered . | . . . . . . . . . . . . . . . . . . Used . | . . . . . . . . . . . . . . . . . . Hacking Detections 18 | . 1 . . . 1 7 . . . 3 . 3 1 2 . . . Full Trace Events 3 | . . . . . . 2 . . . 1 . . . . . . . Feedback Events . | . . . . . . . . . . . . . . . . . . Feedback Blocked . | . . . . . . . . . . . . . . . . . . Robot Schematics Acquired 5 | . . . . . . . . 5 . . . . . . . . . Robots Built . | . . . . . . . . . . . . . . . . . . Matter . | . . . . . . . . . . . . . . . . . . Time . | . . . . . . . . . . . . . . . . . . Total Robot Build Rating . | . . . . . . . . . . . . . . . . . . Part Schematics Acquired 11 | . . . . . 1 4 . 6 . . . . . . . . . Parts Built 5 | . . . . . . 5 . . . . . . . . . . . Matter 430 | . . . . . . 430 . . . . . . . . . . . Time 226 | . . . . . . 226 . . . . . . . . . . . Total Part Build Rating 23 | . . . . . . 23 . . . . . . . . . . . Parts Repaired . | . . . . . . . . . . . . . . . . . . Time . | . . . . . . . . . . . . . . . . . . Parts Recycled . | . . . . . . . . . . . . . . . . . . Recycled Matter . | . . . . . . . . . . . . . . . . . . Retrieved Matter . | . . . . . . . . . . . . . . . . . . Retrieved Components . | . . . . . . . . . . . . . . . . . . Parts Scanalyzed 1 | . . . . . 1 . . . . . . . . . . . . Part Schematics Acquired 1 | . . . . . 1 . . . . . . . . . . . . Parts Damaged . | . . . . . . . . . . . . . . . . . . Bothacking | -11 -10 -10 -10 -9 -8 -7 -7 -7 -6 -6 -6 -6 -5 -4 -4 -4 -3 ------------ Run | Scr Mat Min Exi Min Mat Fac Low Dat Pro Fac Was Fac Fac Fac Upp Upp Res Used RIF Installer . | . . . . . . . . . . . . . . . . . . Robots Hacked . | . . . . . . . . . . . . . . . . . . Non-combat . | . . . . . . . . . . . . . . . . . . Combat . | . . . . . . . . . . . . . . . . . . Robot Hacks Applied . | . . . . . . . . . . . . . . . . . . Relay Couplers Released . | . . . . . . . . . . . . . . . . . . Robots Rewired . | . . . . . . . . . . . . . . . . . . Allies Hacked . | . . . . . . . . . . . . . . . . . . Hacks Repelled . | . . . . . . . . . . . . . . . . . . Allies | -11 -10 -10 -10 -9 -8 -7 -7 -7 -6 -6 -6 -6 -5 -4 -4 -4 -3 -------- Run | Scr Mat Min Exi Min Mat Fac Low Dat Pro Fac Was Fac Fac Fac Upp Upp Res Total Allies 1 | . . . . . . . . . 1 . . . . . . . . Largest Group 1 | . . . . . . . . . 1 1 . . . . . . . Highest-Rated Group 94 | . . . . . . . . . 94 94 . . . . . . . Highest-Rated Ally 94 | . . . . . . . . . 94 94 . . . . . . . Total Orders 7 | . . . . . . . . . . . . . . 4 . . 3 EXPLORE 7 | . . . . . . . . . . . . . . 4 . . 3 Ally Attacks 31 | . . . . . . . . . 22 9 . . . . . . . Total Damage 945 | . . . . . . . . . 591 354 . . . . . . . Kills 8 | . . . . . . . . . 5 3 . . . . . . . Allies Corrupted . | . . . . . . . . . . . . . . . . . . Allies Melted . | . . . . . . . . . . . . . . . . . . Intel | -11 -10 -10 -10 -9 -8 -7 -7 -7 -6 -6 -6 -6 -5 -4 -4 -4 -3 ------- Run | Scr Mat Min Exi Min Mat Fac Low Dat Pro Fac Was Fac Fac Fac Upp Upp Res Robot Analysis Total . | . . . . . . . . . . . . . . . . . . Derelict Logs Recovered 6 | . . . . . . . 1 . 3 . . . . . 1 1 . Drone Launches 7 | . . . . . . . . . . . . . . 4 . . 3 Drone Recoveries 3 | . . . . . . . . . . . . . . 2 . . 1 Exploration | -11 -10 -10 -10 -9 -8 -7 -7 -7 -6 -6 -6 -6 -5 -4 -4 -4 -3 ------------- Run | Scr Mat Min Exi Min Mat Fac Low Dat Pro Fac Was Fac Fac Fac Upp Upp Res Turns Passed 6910 | 57 330 67 34 111 549 935 99 53 582 370 103 705 174 1096 738 148 759 Spaces Moved 5158 | 37 260 51 29 45 298 671 135 86 760 274 123 623 228 648 386 134 370 Core 131 | 9 . . . . . . . . . . . 1 . . . . 121 Treads 34 | . . . . . . . . . . . . . . . . . 34 Legs 925 | 28 260 51 29 43 242 78 . . . . . 46 13 135 . . . Wheels 27 | . . . . . . . . . . . . . . . . 27 . Hover 3683 | . . . . 2 56 593 135 86 760 274 123 576 . 370 386 107 215 Flight 358 | . . . . . . . . . . . . . 215 143 . . . Fastest Speed 34 | 50 120 120 120 90 66 62 62 62 61 65 72 65 44 34 56 60 50 Average Speed 82 | 121 120 120 120 118 136 73 62 62 62 101 72 73 55 86 77 85 86 Slowest Speed 400 | 250 120 120 120 120 180 190 62 62 76 220 72 400 120 200 120 120 400 Overloaded Moves . | . . . . . . . . . . . . . . . . . . Propulsion Burnouts . | . . . . . . . . . . . . . . . . . . Robots Hopped . | . . . . . . . . . . . . . . . . . . Cave-ins Triggered . | . . . . . . . . . . . . . . . . . . Exploration Rate (%) 30 | 4 52 15 8 12 24 19 22 70 87 9 89 22 6 19 64 20 13 Regions Visited 17 Branch Regions 8 Pre-discovered Areas 3 | . . . . . . . . 1 . . . . . . 1 1 . Known Exits Taken 8 | . . . . . . 1 1 1 . . . 1 1 1 1 1 . Unknown Exits Taken 7 | 1 1 1 1 1 1 . . . 1 . . . . . . . . Scrap Searched 4 | . . 1 . 1 . . 1 . 1 . . . . . . . . Spaces Dug . | . . . . . . . . . . . . . . . . . . Terrain Destroyed 123 | . . . . 38 2 . . . 75 . . . . 7 . . 1 Melee . | . . . . . . . . . . . . . . . . . . Projectile 11 | . . . . 1 2 . . . . . . . . 7 . . 1 AOE 112 | . . . . 37 . . . . 75 . . . . . . . . Terrain Rammed . | . . . . . . . . . . . . . . . . . . Walls Destroyed . | . . . . . . . . . . . . . . . . . . Machines Disabled . | . . . . . . . . . . . . . . . . . . Actions | -11 -10 -10 -10 -9 -8 -7 -7 -7 -6 -6 -6 -6 -5 -4 -4 -4 -3 --------- Run | Scr Mat Min Exi Min Mat Fac Low Dat Pro Fac Was Fac Fac Fac Upp Upp Res Total 7375 | 46 280 58 28 84 386 1047 149 85 827 320 137 775 277 1126 823 165 762 Wait 1698 | 2 2 4 . 23 25 285 15 . 35 8 9 64 34 389 437 30 336 Move 5142 | 36 259 50 28 44 297 670 134 85 759 274 122 622 227 647 385 133 370 Hop . | . . . . . . . . . . . . . . . . . . Pick Up 37 | 2 8 2 . 1 5 5 . . 1 1 1 6 2 2 . . 1 Fast Attach 109 | 6 4 . . . 15 12 . . . 12 1 16 2 20 . 2 19 Attach 28 | . . . . 1 3 3 . . 5 . 3 4 3 4 . . 2 Detach 10 | . . . . . 1 2 . . . 1 . 3 1 2 . . . Swap 23 | . . . . 3 3 5 . . 1 1 . 4 1 4 . . 1 Drop 73 | . 7 2 . 1 7 16 . . . 1 1 7 7 19 . . 5 Fire 98 | . . . . 11 6 . . . 9 4 . 8 . 34 1 . 25 Melee 143 | . . . . . 24 40 . . 17 18 . 41 . . . . 3 Ram 5 | . . . . . . . . . . . . . . 5 . . . Kick . | . . . . . . . . . . . . . . . . . . Crush . | . . . . . . . . . . . . . . . . . . Escape Stasis 9 | . . . . . . 9 . . . . . . . . . . . Rewire . | . . . . . . . . . . . . . . . . . . Trap . | . . . . . . . . . . . . . . . . . . Miscellaneous . | . . . . . . . . . . . . . . . . . . Route ------- -11/Scrapyard -10/Materials (discovered 2 exits: [*Mat] / [*Min]) -10/Mines -10/Exiles -9/Mines -8/Materials -7/Factory -7/Lower Caves -7/Data Miner -6/Proximity Caves -6/Factory -6/Waste -6/Factory (discovered 3 exits: *Fac / Low x2) -5/Factory -4/Factory (discovered 3 exits: *Upp x2 / Arm) -4/Upper Caves -4/Upper Caves -3/Research History --------- Turn | Location | Event 12 | -11/Scrapyard | Discovered new exit (range 15) 58 | -11/Scrapyard | Entered Materials 69 | -10/Materials | Discovered new exit (range 15) 149 | -10/Materials | Discovered new exit (range 13) 309 | -10/Materials | Build established: Mutant 388 | -10/Materials | Entered Mines 395 | -10/Mines | Received a Rocket Launcher from a helpful Derelict 410 | -10/Mines | A weapon hastily lodged in a ceiling crevice suddenly fell to the ground 449 | -10/Mines | Deemed a non-threat by the Exiles lab entrance 451 | -10/Mines | Discovered new exit (range 5) 455 | -10/Mines | Entered Exiles 472 | -10/Exiles | Discovered new exit (range 15) 489 | -10/Exiles | Entered Mines 491 | -9/Mines | Discovered new exit (range 10) 501 | -9/Mines | Met a Derelict bent on vengeance 522 | -9/Mines | Destroyed 7 combat bots 560 | -9/Mines | Assembled infested the area 565 | -9/Mines | Assisted by a Guerilla fighting off Assembled 600 | -9/Mines | Entered Materials 600 | -8/Materials | Evolved 4 slots: Utility x2, Weapon x2 705 | -8/Materials | Destroyed 7 combat bots 715 | -8/Materials | Lost 4 parts (1p1n2w) 717 | -8/Materials | Garrison activated, responded to threat 855 | -8/Materials | Lost 4 parts (1p2n1w) 1114 | -8/Materials | Build established: Scavenger-Mutant 1140 | -8/Materials | Discovered new exit (range 7) 1149 | -8/Materials | Entered Factory 1149 | -7/Factory | Evolved 2 slots: Propulsion x1, Utility x1 1377 | -7/Factory | Fabricated Cmb. Airjet (x2) 1479 | -7/Factory | Fabricated Cmb. Airjet? 1611 | -7/Factory | Build established: Mutant 1797 | -7/Factory | Fabricated Actuator Array (x1) 1972 | -7/Factory | Discovered new exit (range 15) 2039 | -7/Factory | Identified exit to Lower Caves 2084 | -7/Factory | Entered Lower Caves 2085 | -7/Lower Caves | Encountered a Warlord checkpoint 2166 | -7/Lower Caves | Learned Factory interactive machine intel 2180 | -7/Lower Caves | A Derelict revealed a hidden shortcut to meet someone special 2182 | -7/Lower Caves | Identified exit to Data Miner 2183 | -7/Lower Caves | Entered Data Miner 2183 | -7/Data Miner | Discovered new exit (range 6) 2187 | -7/Data Miner | Identified exit to Proximity Caves 2196 | -7/Data Miner | Met Data Miner 2209 | -7/Data Miner | Learned location of Section 7 (-2) 2209 | -7/Data Miner | Acquired the access code to Warlord's prototype stash 2219 | -7/Data Miner | Received God Mode back door access code from Data Miner 2236 | -7/Data Miner | Entered Proximity Caves 2236 | -6/Proximity Caves | Learned Factory garrison access intel 2250 | -6/Proximity Caves | Escorted by Enhanced Grunt 2483 | -6/Proximity Caves | Learned Factory terminal intel 2607 | -6/Proximity Caves | Attracted the attention of an 0b10 checkpoint 2660 | -6/Proximity Caves | Lost 4 parts (1n1u2w) 2769 | -6/Proximity Caves | Discovered new exit (range 11) 2818 | -6/Proximity Caves | Entered Factory 2818 | -6/Factory | Accompanied by 1 ally 2818 | -6/Factory | Evolved 2 slots: Utility x2 2819 | -6/Factory | Identified exit to Lower Caves 2820 | -6/Factory | Loaded intel: 45 interactive machine locations 2821 | -6/Factory | Loaded intel: 19 terminal locations 2822 | -6/Factory | Loaded intel: 4 garrison access locations 2849 | -6/Factory | Lost 3 parts (1n1u1w) 3038 | -6/Factory | Garrison activated, responded to threat 3093 | -6/Factory | Found Prototype Device 3093 | -6/Factory | Identified Exp. Thermal Shield 3188 | -6/Factory | Sucked down chute 3188 | -6/Factory | Entered Waste 3203 | -6/Waste | EMP discharged 3211 | -6/Waste | Spotted C-40 Crusher 3216 | -6/Waste | Spotted C-40 Crusher 3217 | -6/Waste | Lost 4 parts (1p2u1w) 3232 | -6/Waste | Spotted C-40 Crusher 3239 | -6/Waste | Spotted C-40 Crusher 3240 | -6/Waste | Spotted C-40 Crusher 3273 | -6/Waste | Spotted C-40 Crusher 3281 | -6/Waste | Discovered new exit (range 16) 3291 | -6/Waste | Identified exit to Factory 3291 | -6/Waste | Entered Factory 3771 | -6/Factory | Discovered new exit (range 13) 3810 | -6/Factory | Spotted B-75 Beast 3877 | -6/Factory | Core integrity fell below 50% 3938 | -6/Factory | Lost 8 parts (1p3n2u2w) 3995 | -6/Factory | Identified exit to Factory 3996 | -6/Factory | Entered another Factory area 3996 | -5/Factory | Evolved 2 slots: Propulsion x1, Utility x1 4096 | -5/Factory | Discovered new exit (range 16) 4163 | -5/Factory | Identified exit to Factory 4170 | -5/Factory | Entered another Factory area 4170 | -4/Factory | Evolved 2 slots: Utility x2 4704 | -4/Factory | Build established: Scavenger-Gunner 5139 | -4/Factory | Identified exit to Upper Caves 5139 | -4/Factory | Identified exit to Armory 5231 | -4/Factory | System corruption reached 10% 5266 | -4/Factory | Entered Upper Caves 5296 | -4/Upper Caves | Lost 6 parts (1p2n1u2w) 5412 | -4/Upper Caves | Build established: Scavenger-Mutant 5681 | -4/Upper Caves | Learned location of Quarantine (-2) 5948 | -4/Upper Caves | Discovered new exit (range 15) 5962 | -4/Upper Caves | Identified exit to Upper Caves 6004 | -4/Upper Caves | Entered another Upper Caves area 6015 | -4/Upper Caves | Learned location of Testing (-3) 6031 | -4/Upper Caves | Spotted B-86 Titan 6077 | -4/Upper Caves | Lost 3 parts (1n1u1w) 6126 | -4/Upper Caves | Discovered new exit (range 15) 6139 | -4/Upper Caves | Identified exit to Research 6152 | -4/Upper Caves | Entered Research 6152 | -3/Research | Evolved 2 slots: Utility x2 6188 | -3/Research | Found Adv. Powered Armor 6191 | -3/Research | Found Adv. Powered Armor 6525 | -3/Research | Build established: Mutant 6783 | -3/Research | Lost 6 parts (3u3w) 6835 | -3/Research | Found Enh. Force Lance 6843 | -3/Research | Core integrity fell below 50% 6853 | -3/Research | Core integrity fell below 20% 6879 | -3/Research | Lost 12 parts (4n4u4w) 6911 | -3/Research | Destroyed by P-80 Master with Gamma Rifle Last Messages --------------- 06852_ K-01 Serf cleans the Fabricator. 06853_ Penetrated by Slug. 06857_ Slug penetrates Wall. 06858_ Penetrated by Slug. 06868_ System corrupted: Energy discharge (-36). 06875_ K-01 Serf cleans the Fabricator. 06886_ Acquired 10 matter. 06890_ Acquired Particle Reactor. 06895_ Acquired Quantum Rifle. 06900_ System corrupted: Matter fused (-7). 06900_ Acquired Quantum Rifle. 06902_ ALERT: Rogue bot located, Programmers report to Research Zone 1O. 06902_ Destroyed Sml. Battery. 06902_ System corrupted: Quantum Rifle targeting data glitched. 06902_ Sml. Battery melted. 06902_ P-80 Master destroyed. 06908_ Slug penetrates Wall. 06908_ Quantum Rifle destroyed. 06911_ Slug penetrates Wall. 06911_ Penetrated by Slug. Map ----- +----------------------------------------------------+ | # # ##T + | | # ######## ##"" # ### | | # #??????# ##"" """ # #?# | | # ######## ##"" """ + #?# | | # ###+####### """ ######?# | | # ###### #??????# | | # / #??????# | | # """ ##+#####################??????# | | # ^ """ # #???????# ??###### | | # """ # = #???????# ### | | ##+### # #???????# + + | | ^^ # " "" #???????# # # | | ^ # "R"" #???????# # # ! | | ^ ^ %# """" #???????# ?# # | | "" # #???????######?# # | | ###### """ # = #??????????????# # | | ?????# "F ###########??????????????# # | | ?????# """ #######??????????????????# ###### | | ?????# "" #????#######???????# #### | | ?????# ##### #????# ######### | | ?????# #???# ###### | | ?????# #???# ############## | | ?????## ######+###???#/###### #????????######+ | | ??????# #????????????#p%* # #????????# | | ####### #????????????#=!* [!###+####???????# | | # #????????????# @ !# #???????# | | # #????????????# [*!# ] #???????# | | # #????????????# # #???????# """ | | # #????????????# [# ! #???????# """ | | #+##+## #????????????######## ! #???????# """ | | #???????????????????# #???????# """ | | #########???????????????????########???????# """ | | ???????????????????????????????????????????# | | ???????????????????????????????????????????# | | ???????????????????????????????????????????# | | ???????????????????????????????????????????####### | | | | | | | | | | | | | | | | | | | | | | | | | | | | | +----------------------------------------------------+ Best States ------------- Heat Dissipation 65 Energy Generation 23 Energy Capacity 770 Matter Stores 300 Matter Capacity 450 Sight Range 23 Robot Scan Range 16 Terrain Scan Density 10 Corruption Prevention 20 Armor Coverage 800 Resistance: KI 20 Resistance: TH 30 Resistance: EM 15 Core Shielding 20 Propulsion Shielding 90 Melee Speed Boost 20 Evasion (%) 63 Targeting Accuracy 8 Melee Accuracy 8 Recoil Reduction 6 Particle Charging 20 Item Schematics ----------------- Cmb. Airjet | -8/Materials | Scanalyzed Imp. Utility Shielding | -7/Factory | Extracted Hcp. Storage Unit | -7/Factory | Extracted Actuator Array | -7/Factory | Extracted Kinecellerator | -7/Factory | Extracted Combat Drone Bay | -7/Data Miner | Free Lgt. Regenerative Plating | -7/Data Miner | Free Triangulator | -7/Data Miner | Free Tactical Coordination Suite | -7/Data Miner | Free Mni. Smartbomb Launcher | -7/Data Miner | Free Plasma Sword | -7/Data Miner | Free Robot Schematics ------------------ S-27 Virus | -7/Data Miner | Free G-50 Soldier | -7/Data Miner | Free G-67 Veteran | -7/Data Miner | Free H-66 Slayer | -7/Data Miner | Free I-36 Angel | -7/Data Miner | Free Fabricated ------------ Cmb. Airjet | x2 | -7/Factory Cmb. Airjet | x2 | -7/Factory Actuator Array | x1 | -7/Factory Alien Tech Used ----------------- None Achievements -------------- Ambidextrous Brute Force I Survived The Infestation Challenges ------------ None Game ------ Seed OmegaMinesnifferSegregator Manual? 0 Play Time 01:30:57 Cumulative 14.2 hours Start 2020.10.01 @ 16:40:20 End 2020.10.01 @ 21:33:52 Sessions 3 Manual Loads 0 Difficulty Rogue Special Mode None Game No. 11 Rogue 11 Adventurer 0 Explorer 0 Win Type - Total 0 Types 0/0/0/0/0/0/0/0/0 Lore% 32 Gallery% 36 Achievement% 28 Wizard Run 0 Options --------- ASCII 0 Keyboard 0 Movement Numpad Keybinds 0 Fullscreen 1 Font 18/SmallcapsGlow Map View 76x50 Tactical HUD 1 Map Filters NONE Filters NONE Steam 1 RUN: 7aaa379e-6bca-4238-8b8a-bee0edcbc2f8